Cogmind - Beta 12 @@@ ROGUE MODE // 2023.07.17 @ 12:40:37 Player: woons Result: Destroyed by 8R-AWN with 8R-AWN's Boregun Performance ------------- Evolutions (0) 0 Regions Visited (3) 600 Robots Destroyed (21) 105 Value Destroyed (356) 356 Prototype IDs (1) 20 Alien Tech Used (0) 0 Bonus (-2) -2 TOTAL SCORE: 1079 Bonus ------- Friendly Fire -2 Cogmind --------- Core Integrity 0/250 Matter 225/300 Energy 125/125 System Corruption 0% Temperature Cool (0) Movement Treading (160) Location -10/Exiles Parts ------- > --- POWER (1) -------- Light Ion Engine > --- PROPULSION (2) --- Improved Treads > --- UTILITY (2) ------ Medium Storage Unit Hacking Suite > --- WEAPON (2) ------- (None) > --- INVENTORY (10) --- Improved Treads Signal Interpreter Improved Terrain Scanner Seismic Detector Seismic Detector Peak State ------------ > --- POWER ------------ Light Nuclear Core > --- PROPULSION ------- Improved Treads Improved Treads > --- UTILITY ---------- Medium Storage Unit Hacking Suite > --- WEAPON ----------- EM Pulse Gun EM Pulse Gun > --- INVENTORY -------- Light Ion Engine Improved Treads Improved Treads Signal Interpreter Improved Terrain Scanner Seismic Detector Seismic Detector EM Pulse Gun Rocket Launcher [Rating: 14] Favorites ----------- Power Light Ion Engine Engine Light Ion Engine Power Core Light Nuclear Core Propulsion Improved Treads Treads Improved Treads Leg Aluminum Leg Wheel Wheel Utility Seismic Detector Device Seismic Detector Storage Medium Storage Unit Hackware Hacking Suite Weapon EM Pulse Gun Energy Gun EM Pulse Gun Ballistic Gun Light Assault Rifle Launcher Rocket Launcher Build | -11 -10 -10 -10 ------- Run | Jun Mat Min Exi Slots Evolved . | . . . . Power . | . . . . Propulsion . | . . . . Utility . | . . . . Weapon . | . . . . Parts Attached 24 | 8 6 5 5 Power 5 | 1 2 1 1 Engine 4 | 1 2 . 1 Core 1 | . . 1 . Reactor . | . . . . Propulsion 9 | 4 2 2 1 Treads 5 | . 2 2 1 Leg . | . . . . Wheel 4 | 4 . . . Hover . | . . . . Flight . | . . . . Utility 5 | 2 1 1 1 Device 3 | 2 . 1 . Storage 1 | . 1 . . Processor . | . . . . Hackware 1 | . . . 1 Protection . | . . . . Artifact . | . . . . Weapon 5 | 1 1 1 2 Energy Gun 4 | 1 1 1 1 Energy Cannon . | . . . . Ballistic Gun . | . . . . Ballistic Cannon . | . . . . Launcher 1 | . . . 1 Special Weapon . | . . . . Impact Weapon . | . . . . Slashing Weapon . | . . . . Piercing Weapon . | . . . . Special Melee Weapon . | . . . . Unidentified Prototypes 1 | . 1 . . Parts Lost 8 | . . 1 7 Power 1 | . . . 1 Propulsion 2 | . . . 2 Utility . | . . . . Weapon 5 | . . 1 4 Highest Loss Streak 7 | . . 1 7 To Critical Strikes 1 | . . . 1 Average Slot Usage (%) 98 | . 99 100 95 Engine 8 | . 14 10 . Core 5 | . . 3 11 Treads 24 | . 14 28 27 Wheel 2 | . 13 . . Device 14 | . 26 14 7 Storage 11 | . 1 14 14 Hackware 1 | . . . 7 Energy Gun 26 | . 22 28 25 Ballistic Gun 1 | . 5 . . Naked Turns . | . . . . Heaviest Build 20 | 13 18 20 20 Greatest Support 46 | 32 46 46 46 Greatest Overweight (x) . | . . . . Average Overweight (x) . | . . . . Largest Inventory Capacity 10 | 8 10 10 10 Average Capacity 8 | 6 5 10 10 Most Carried 10 | 8 8 10 9 Average Carried 7 | 5 5 8 8 Final Capacity 10 | 5 10 10 10 Final Carried 9 | 5 8 9 5 Class Distribution -------------------- 81% | Mutant 18% | Scavenger-Mutant Dominant Class ---------------- Mutant | -10/Materials Mutant | -10/Mines Mutant | -10/Exiles Resources | -11 -10 -10 -10 ----------- Run | Jun Mat Min Exi Matter Collected 380 | 289 1 90 . Remotely . | . . . . Salvage Created 806 | 192 47 546 21 Parts 52 | 20 5 27 . Haulers Intercepted . | . . . . Recyclers Shooed . | . . . . Parts Field Recycled . | . . . . Retrieved Matter . | . . . . Parts Self-Destructed . | . . . . Prevented . | . . . . Kills | -11 -10 -10 -10 ------- Run | Jun Mat Min Exi Combat Hostiles Destroyed 12 | . . 7 5 Guns 3 | . . 3 . AOE 8 | . . 3 5 Classes Destroyed 8 | 2 2 3 1 Worker 1 | . . 1 . Builder 1 | . . 1 . Tunneler 7 | 4 . 3 . Recycler 3 | 1 . 2 . Operator 1 | . 1 . . Watcher 1 | . 1 . . Grunt 7 | . . 7 . Assembled 5 | . . . 5 Best Kill Streak 6 | 2 1 6 5 Combat Bots Only 5 | . . 4 5 Max Kills in Single Turn 4 | 1 1 3 4 Gunslinging . | . . . . Exploded 4 | . . 2 4 Melee . | . . . . Uniques/NPCs Destroyed . | . . . . Combat | -11 -10 -10 -10 -------- Run | Jun Mat Min Exi Damage Taken 1380 | . 153 369 858 Core 257 | . 43 71 143 Absorbed by Shields . | . . . . Core Remaining (%) 100 | 100 . . . Volleys Fired 52 | 9 4 31 8 Largest 2 | 2 2 2 1 Hottest 80 | 60 80 80 40 Shots Fired 95 | 18 8 61 8 Gun 91 | 18 8 61 4 Cannon . | . . . . Launcher 4 | . . . 4 Special . | . . . . Kinetic 10 | 9 1 . . Thermal 4 | 4 . . . Explosive 4 | . . . 4 Electromagnetic 77 | 5 7 61 4 Robot Hit Streak 9 | 3 5 9 3 Robot Miss Streak 3 | 2 2 3 2 Penetration Max . | . . . . Secondary Targets . | . . . . Shots Hit Robots 54 | 9 3 38 4 Core Hits 39 | 6 2 21 10 Critical Kills . | . . . . Critical Parts Destroyed . | . . . . Critical Strikes 2 | 1 . 1 . Corrupt 2 | 1 . 1 . Melee Attacks . | . . . . Impact . | . . . . Slashing . | . . . . Piercing . | . . . . Sneak Attacks . | . . . . Combat Hostiles . | . . . . Follow-up Attacks . | . . . . Damage Inflicted 1470 | 122 62 872 414 Guns 711 | 122 62 526 1 Cannons . | . . . . Explosions 757 | . . 346 411 Melee . | . . . . Ramming 2 | . . . 2 Kinetic 17 | 17 . . . Thermal 381 | 35 . 346 . Explosive 411 | . . . 411 Electromagnetic 659 | 70 62 526 1 Impact . | . . . . Slashing . | . . . . Piercing . | . . . . Highest Corruption . | . . . . Average Corruption . | . . . . Corruption Purged . | . . . . Corruption Blocked . | . . . . Overload Shots . | . . . . Overflow Damage 26 | . . . 26 Projectiles . | . . . . Explosions 26 | . . . 26 Melee . | . . . . Knockbacks . | . . . . Impact . | . . . . Kinetic . | . . . . Secondary . | . . . . Self-Inflicted Damage 210 | . . 59 151 Shots 6 | . . 2 4 Rammed 2 | . . . 2 Targets Rammed 2 | . . . 2 Kicked . | . . . . Crushed . | . . . . Highest Temperature 274 | 20 66 274 . Average Temperature 81 | 15 26 96 . Received Heat Transfer 276 | . 84 192 . Effects 3 | . . 3 . Interference 3 | . . 3 . Siege Activations . | . . . . Robots Corrupted 1 | . . 1 . Combat Hostiles 1 | . . 1 . Parts Fried 3 | . . 3 . Impact Corruptions . | . . . . Robots Melted . | . . . . Combat Hostiles . | . . . . Parts Melted . | . . . . Heat Transferred 475 | 75 . 400 . Parts Sabotaged . | . . . . Parts Stolen . | . . . . Parts Stripped . | . . . . Power Chain Reactions 6 | . . 6 . Missiles Intercepted . | . . . . Alert | -11 -10 -10 -10 ------- Run | Jun Mat Min Exi Peak Influence 128 | 25 57 128 . Initial 22 | . 16 22 . Average 39 | 12 29 49 . Maximum Alert Level . | . . . . Low Security (%) 100 | 100 100 100 . Level 1 . | . . . . Level 2 . | . . . . Level 3 . | . . . . Level 4 . | . . . . Level 5 . | . . . . High Security . | . . . . Max Security . | . . . . Squads Dispatched 2 | . 2 . . Investigation 1 | . 1 . . Extermination . | . . . . Reinforcement 1 | . 1 . . Assault . | . . . . Garrison . | . . . . Intercept . | . . . . Searches Triggered . | . . . . Construction Impeded . | . . . . Haulers Reinforced . | . . . . Active Scanning Responses . | . . . . Cargo Convoy Interrupts . | . . . . Stealth | -11 -10 -10 -10 --------- Run | Jun Mat Min Exi Distress Signals . | . . . . Communications Jammed . | . . . . Distress Signals . | . . . . Times Spotted 23 | . 6 8 9 Peak Tracking Total 11 | . 3 3 11 Tactical Retreats 4 | . 1 1 2 Traps | -11 -10 -10 -10 ------- Run | Jun Mat Min Exi Traps Triggered . | . . . . Indirectly . | . . . . Trap Hack Attempts . | . . . . Triggered . | . . . . Disarmed . | . . . . Reprogrammed . | . . . . Reused . | . . . . Traps Extracted . | . . . . Installed . | . . . . Triggered 1 | . 1 . . Machines | -11 -10 -10 -10 ---------- Run | Jun Mat Min Exi Machines Disabled 4 | . . . 4 Max in Single Turn 1 | . . . 1 Machines Repaired . | . . . . Machines Sabotaged . | . . . . Overloaded Fab Kills . | . . . . Hacking | -11 -10 -10 -10 --------- Run | Jun Mat Min Exi Machines Accessed 2 | . 2 . . Terminals 2 | . 2 . . Fabricators . | . . . . Repair Stations . | . . . . Recycling Units . | . . . . Scanalyzers . | . . . . Garrison Access . | . . . . Total Hacks 6 | . 6 . . Successful 4 | . 4 . . Failed 2 | . 2 . . Catastrophic . | . . . . Database Lockouts . | . . . . Manual 4 | . 4 . . Terminals 6 | . 6 . . Fabricators . | . . . . Repair Stations . | . . . . Recycling Units . | . . . . Scanalyzers . | . . . . Garrison Access . | . . . . Terminal Hacks 2 | . 2 . . Branch Access Points 1 | . 1 . . Zone Layout 1 | . 1 . . Fabricator Hacks . | . . . . Repair Station Hacks . | . . . . Recycling Unit Hacks . | . . . . Scanalyzer . | . . . . Garrison Access Hacks . | . . . . Unauthorized Hacks 2 | . 2 . . Terminals 2 | . 2 . . Botnet 2 | . 2 . . Fabricators . | . . . . Repair Stations . | . . . . Recycling Units . | . . . . Scanalyzers . | . . . . Garrison Access . | . . . . Data Cores Recovered . | . . . . Used . | . . . . Hacking Detections 2 | . 2 . . Full Trace Events . | . . . . Feedback Events . | . . . . Feedback Blocked . | . . . . Robot Schematics Acquired . | . . . . Robots Built . | . . . . Authchips . | . . . . Time . | . . . . Total Robot Build Rating . | . . . . Part Schematics Acquired . | . . . . Parts Built . | . . . . Authchips . | . . . . Time . | . . . . Total Part Build Rating . | . . . . Parts Repaired . | . . . . Time . | . . . . Parts Recycled . | . . . . Recycled Matter . | . . . . Retrieved Matter . | . . . . Retrieved Components . | . . . . Parts Scanalyzed . | . . . . Part Schematics Acquired . | . . . . Parts Damaged . | . . . . Bothacking | -11 -10 -10 -10 ------------ Run | Jun Mat Min Exi Used RIF Installer . | . . . . Robots Hacked . | . . . . Non-combat . | . . . . Combat . | . . . . Robot Hacks Applied . | . . . . Relay Couplers Released . | . . . . Fabnet Peak Effective % . | . . . . Robots Rewired . | . . . . Allies Hacked . | . . . . Hacks Repelled . | . . . . Allies | -11 -10 -10 -10 -------- Run | Jun Mat Min Exi Total Allies . | . . . . Largest Group . | . . . . Highest-Rated Group . | . . . . Highest-Rated Ally . | . . . . Total Orders . | . . . . Ally Attacks . | . . . . Total Damage . | . . . . Kills . | . . . . Allies Corrupted . | . . . . Allies Melted . | . . . . Intel | -11 -10 -10 -10 ------- Run | Jun Mat Min Exi Robot Analysis Total . | . . . . Derelict Logs Recovered . | . . . . Drone Launches . | . . . . Drone Recoveries . | . . . . Exploration | -11 -10 -10 -10 ------------- Run | Jun Mat Min Exi Turns Passed 1172 | 126 222 562 262 Spaces Moved 566 | 84 148 190 144 Core . | . . . . Treads 396 | . 62 190 144 Legs 9 | 9 . . . Wheels 161 | 75 86 . . Hover . | . . . . Flight . | . . . . Fastest Speed 80 | 80 80 160 160 Average Speed 137 | 93 113 160 160 Slowest Speed 160 | 120 160 160 160 Overloaded Moves . | . . . . Propulsion Burnouts . | . . . . Robots Hopped . | . . . . Cave-ins Triggered . | . . . . Exploration Rate (%) 33 | 4 33 48 49 Regions Visited 3 Branch Regions 2 Pre-discovered Areas . | . . . . Known Exits Taken 1 | . 1 . . Unknown Exits Taken 2 | 1 . 1 . Scrap Searched . | . . . . Spaces Dug . | . . . . Terrain Destroyed 38 | . . 15 23 Melee . | . . . . Projectile . | . . . . AOE 38 | . . 15 23 Terrain Rammed . | . . . . Walls Destroyed . | . . . . Machines Disabled . | . . . . Actions | -11 -10 -10 -10 --------- Run | Jun Mat Min Exi Total 867 | 118 198 385 166 Wait 183 | . 18 160 5 Move 563 | 83 147 189 144 Hop . | . . . . Pick Up 15 | 5 10 . . Fast Attach 11 | 5 6 . . Attach 7 | 2 . 1 4 Detach 3 | 3 . . . Swap 6 | 1 . 4 1 Drop 23 | 10 13 . . Fire 52 | 9 4 31 8 Melee . | . . . . Ram . | . . . . Kick . | . . . . Crush 2 | . . . 2 Escape Stasis . | . . . . Rewire 2 | . . . 2 Trap . | . . . . Miscellaneous . | . . . . Route ------- -11/Junkyard -10/Materials -10/Mines -10/Exiles (discovered 1 exit: [*Min]) History --------- Turn | Location | Event 1 | -11/Junkyard | Discovered new exit (range 3) 127 | -11/Junkyard | Entered Materials 257 | -10/Materials | Identified exit to Mines 349 | -10/Materials | Entered Mines 526 | -10/Mines | Build established: Mutant 558 | -10/Mines | Excavation squad dispatched 558 | -10/Mines | A large section of the Mines collapsed 808 | -10/Mines | Excavation squad dispatched 901 | -10/Mines | Deemed a non-threat by the Exiles lab entrance 901 | -10/Mines | Discovered new exit (range 5) 911 | -10/Mines | Entered Exiles 943 | -10/Exiles | Discovered new exit (range 14) 972 | -10/Exiles | Met 8R-AWN 999 | -10/Exiles | Met EX-HEX 1063 | -10/Exiles | Met EX-DEC 1130 | -10/Exiles | Attacked by the Exiles 1146 | -10/Exiles | Core integrity fell below 50% 1163 | -10/Exiles | Core integrity fell below 20% 1173 | -10/Exiles | Destroyed by 8R-AWN with 8R-AWN's Boregun Last Messages --------------- 01157_ Imp. Treads destroyed. 01157_ Penetrated by HV Slug. 01160_ The unstable cave ceiling collapses. 01160_ Penetrated by HV Slug. 01160_ HV Slug penetrates DV-80L(z). 01160_ DV-80L(z) suffers critical hit (Destroy). 01162_ Penetrated by HV Slug. 01166_ Critical hit (Destroy). 01166_ Imp. Treads destroyed. 01166_ HV Slug penetrates as-45905. 01166_ as-45905 destroyed. 01166_ HV Slug penetrates Wall. 01169_ Penetrated by HV Slug. 01169_ HV Slug penetrates DV-80L(z). 01169_ DV-80L(z) suffers critical hit (Destroy). 01169_ DV-80L(z) destroyed. 01169_ HV Slug penetrates A-02 Transporter. 01171_ Penetrated by HV Slug. 01171_ EM Pulse Gun destroyed. 01173_ Penetrated by HV Slug. Map ----- +----------------------------------------------------+ | ??????" ????????????" ?????????????????????? | | ????? ???????????#" ??????????????????????? | | ??????" ??????????##" #??????????????????????? | | ??????# #????????##"" #??????????????????????? | | ????### ##??######"" #??????????????????????? | | #####X# #"###""""""" ##?????????????????????? | | """""" " "" ##????########????????? | | "" """ " #####"""""""""???????? | | " " " """ """"#?????? | | "" " #????? | | " """#????? | | " "#????? | | " "##???? | | ""###?? | | "" """""" """#?? | | ######""" "#?? | | ""##????#####""" ##? | | " """##?????????##""" ## | | """##???????????#"""" # | | ""#?????######?#"" | | ######## ##"" " | | ##aaa % %* g | | | | % | | "" % # | | @ % " ## | | a """ ""#? | | """ % " " " ""#" "##? | | " " #####""" """##"""""""##?? | | """# # ##???###""""#?#########??? | | "" """### # #??????#####?????????????? | | ""##?##! ????????????????????????? | | "" """##???#" ???????????????????????? | | #""" ##????#" "??????????????????????? | | ##"""" ##?????#!!""!"??????????????????????? | | ?### #??????########?????????????????????? | | ???##### ##???????????????????????????????????? | | ???????## #????????????????????????????????????? | | ????????# #????????????????????????????????????? | | ????????# #????????????????????????????????????? | | ????????# #????????????????????????????????????? | | ????????# #????????????????????????????????????? | | ????????# #????????????????????????????????????? | | ????????# #????????????????????????????????????? | | ????????# #????????????????????????????????????? | | ????????# #????????????????????????????????????? | | ????????# #????????????????????????????????????? | | ????????# #????????????????????????????????????? | | ????????" "????????????????????????????????????? | | ???????? ????????????????????????????????????? | +----------------------------------------------------+ Best States ------------- Heat Dissipation 25 Energy Generation 14 Energy Capacity 250 Matter Stores 300 Matter Capacity 300 Sight Range 16 Terrain Scan Range 16 Terrain Scan Density 10 Evasion (%) 44 Recoil Reduction 2 Offensive Hacking 10 Item Schematics ----------------- None Robot Schematics ------------------ None Fabricated ------------ Nothing Alien Tech Used ----------------- None Achievements -------------- None Challenges ------------ None Game ------ Seed CoolingMiniAmplifier Manual? 0 Play Time 00:12:28 Cumulative 26.7 hours Start 2023.07.17 @ 12:29:54 End 2023.07.17 @ 12:40:37 Sessions 1 Manual Loads 0 Difficulty Rogue Special Mode None Game No. 29 Rogue 28 Adventurer 1 Explorer 0 Win Type - Total 0 Types 0/0/0/0/0/0/0/0/0 Lore% 24 Gallery% 37 Achievement% 27 Wizard Run 0 Options --------- ASCII 0 Keyboard 0 Movement Mouse Keybinds 0 Fullscreen 2 Font 24/Proggy Map View 76x50 Tactical HUD 1 Map Filters NONE Filters NONE Steam 1 RUN: c6c8063d-0d6d-4699-9f84-de1388aa635c